bitfinex-derivatives/quotes_BTCF0:USTF0_20241214
["timestamp","ask_amount","ask_price","bid_price","bid_amount"]
[1734159441131,0.08829569,101910.0,101900.0,1.68439651]
[1734159441625,0.08829569,101910.0,101900.0,1.32359651]
[1734159441820,0.08829569,101910.0,101900.0,1.68439651]
[1734159442625,0.62751455,101910.0,101900.0,0.79383331]
[1734159442815,0.62751455,101910.0,101900.0,0.735152]
[1734159442816,0.71414011,101910.0,101900.0,0.735152]
[1734159443016,0.71414011,101910.0,101900.0,0.91149791]
[1734159443224,0.89064656,101910.0,101900.0,0.41149791]
[1734159443425,0.89064656,101910.0,101900.0,0.17641748]
[1734159444631,1.07494011,101910.0,101900.0,0.17641748]
[1734159452031,0.35334011,101910.0,101900.0,0.17641748]
[1734159452239,1.07494011,101910.0,101900.0,0.17641748]
[1734159452539,1.07494011,101910.0,101900.0,7.157e-05]
[1734159453428,1.13559639,101910.0,101900.0,7.157e-05]
[1734159453738,1.32666006,101910.0,101900.0,7.157e-05]
[1734159453936,1.31194006,101910.0,101900.0,7.157e-05]
[1734159454133,1.32666006,101910.0,101900.0,7.157e-05]
[1734159454335,1.31194006,101910.0,101900.0,7.157e-05]
[1734159455037,1.25128378,101910.0,101900.0,7.157e-05]
[1734159455428,1.07477733,101910.0,101900.0,7.157e-05]
[1734159455929,1.31194006,101910.0,101900.0,7.157e-05]
[1734159456933,1.25128378,101910.0,101900.0,7.157e-05]
[1734159457243,1.31194006,101910.0,101900.0,7.157e-05]
[1734159458130,1.33111034,101910.0,101900.0,7.157e-05]
[1734159460043,1.31194006,101910.0,101900.0,7.157e-05]
[1734159463337,1.33174248,101910.0,101900.0,7.157e-05]
[1734159465546,1.18488143,101910.0,101900.0,7.157e-05]
[1734159465841,1.54756143,101910.0,101900.0,7.157e-05]
[1734159466240,1.6337072,101910.0,101900.0,7.157e-05]
[1734159466742,1.57305092,101910.0,101900.0,7.157e-05]
[1734159467044,1.45720075,101910.0,101900.0,0.50007157]
[1734159467639,1.6337072,101910.0,101900.0,0.50007157]
[1734159468539,1.45720075,101910.0,101900.0,0.50007157]
[1734159469545,1.6337072,101910.0,101900.0,0.50007157]
[1734159470637,1.2710272,101910.0,101900.0,0.50007157]
[1734159471443,1.12422515,101910.0,101900.0,0.67641748]
[1734159473034,1.09392515,101910.0,101900.0,0.67641748]
[1734159473440,1.10864515,101910.0,101900.0,0.67641748]
[1734159473638,1.09392515,101910.0,101900.0,0.67641748]
[1734159477151,1.06092515,101910.0,101900.0,0.67641748]
[1734159477341,1.02762515,101910.0,101900.0,0.67641748]
[1734159477655,1.02762515,101910.0,101900.0,0.91149791]
[1734159477656,1.00782273,101910.0,101900.0,0.91149791]
[1734159478954,0.28622273,101910.0,101900.0,0.91149791]
[1734159479146,1.00782273,101910.0,101900.0,0.91149791]
[1734159482554,0.28622273,101910.0,101900.0,0.91149791]
[1734159482753,1.00782273,101910.0,101900.0,0.91149791]
[1734159482950,0.28622273,101910.0,101900.0,0.91149791]
[1734159483155,1.00782273,101910.0,101900.0,0.91149791]
[1734159483657,1.03972273,101910.0,101900.0,0.91149791]
[1734159485553,1.00782273,101910.0,101900.0,0.91149791]
[1734159485755,0.26481965,101910.0,101900.0,1.18271767]
[1734159485960,0.26481965,101910.0,101900.0,1.53442104]
[1734159486256,0.20595682,101910.0,101900.0,1.31596942]
[1734159487056,0.08826614,101910.0,101900.0,1.64037687]
[1734159487354,0.08826614,101910.0,101900.0,1.67661733]
[1734159488353,0.62552667,101920.0,101900.0,1.67661733]
[1734159488649,0.62552667,101920.0,101910.0,0.43876728]
[1734159488953,0.26472667,101920.0,101910.0,0.43876728]
[1734159489357,0.26472667,101920.0,101910.0,0.93876728]
[1734159489358,0.62602667,101920.0,101910.0,0.93876728]
[1734159489846,0.26522667,101920.0,101910.0,0.93876728]
[1734159490246,0.14753599,101920.0,101910.0,0.93876728]
[1734159490554,0.14703599,101920.0,101910.0,0.93876728]
[1734159491456,0.14753599,101920.0,101910.0,0.93876728]
[1734159495059,0.01021385,101920.0,101910.0,0.93876728]
[1734159495566,0.00971385,101920.0,101910.0,0.93876728]
[1734159495762,0.6764661,101930.0,101910.0,1.29956728]
[1734159495965,0.6764661,101930.0,101920.0,0.049055]
[1734159496456,0.6769661,101930.0,101920.0,0.049055]
[1734159496957,0.68682353,101930.0,101920.0,0.049055]
[1734159497666,0.68632353,101930.0,101920.0,0.049055]
[1734159498471,0.68682353,101930.0,101920.0,0.049055]
[1734159498767,0.32602353,101930.0,101920.0,0.049055]
[1734159498968,0.71712353,101930.0,101920.0,0.049055]
[1734159502467,0.62885739,101930.0,101920.0,0.049055]
[1734159502856,0.77598636,101930.0,101920.0,0.049055]
[1734159504154,0.41518636,101930.0,101920.0,0.049055]
[1734159504356,1.13678636,101930.0,101920.0,0.049055]
[1734159504760,0.98965739,101930.0,101920.0,0.049055]
[1734159504960,1.13678636,101930.0,101920.0,0.049055]
[1734159507570,1.01909568,101930.0,101920.0,0.049055]
[1734159509164,0.29749568,101930.0,101920.0,0.049055]
[1734159509561,1.01909568,101930.0,101920.0,0.049055]
[1734159511267,0.29749568,101930.0,101920.0,0.049055]
[1734159511471,1.19560213,101930.0,101920.0,0.049055]
[1734159513064,0.47400213,101930.0,101920.0,0.049055]
[1734159513366,1.19560213,101930.0,101920.0,0.049055]
[1734159513562,1.19510213,101930.0,101920.0,0.049055]
[1734159514167,0.47350213,101930.0,101920.0,0.049055]
[1734159514364,0.049055,101920.0,101910.0,0.78441]
[1734159514571,0.68000959,101920.0,101910.0,0.735351]
[1734159514871,0.68000959,101920.0,101910.0,0.9606829]
[1734159515272,0.85651604,101920.0,101910.0,0.9606829]
[1734159515469,0.85651604,101920.0,101910.0,0.9601829]
[1734159516572,0.85651604,101920.0,101910.0,0.9606829]
[1734159517475,0.85651604,101920.0,101910.0,0.9601829]
[1734159518475,0.85651604,101920.0,101910.0,0.9606829]
[1734159518671,0.79585976,101920.0,101910.0,0.9606829]
[1734159518974,0.85651604,101920.0,101910.0,0.784411]
[1734159519670,0.85651604,101920.0,101910.0,0.783911]
[1734159520576,0.85651604,101920.0,101910.0,0.784411]
[1734159520764,0.76455976,101920.0,101910.0,0.84506728]
[1734159520968,0.62544184,101920.0,101910.0,1.13873211]
[1734159521168,0.20587239,101920.0,101910.0,1.70928448]
[1734159521573,0.20587239,101920.0,101910.0,1.96400525]
[1734159522468,0.20587239,101920.0,101910.0,1.96450525]
[1734159522876,0.20587239,101920.0,101910.0,1.67084042]
[1734159523076,0.08822886,101920.0,101910.0,1.67084042]
[1734159523478,0.08822886,101920.0,101910.0,1.67034042]
[1734159524378,0.08822886,101920.0,101910.0,1.67046655]
[1734159524679,0.08822886,101920.0,101910.0,1.67096655]
[1734159525480,0.08822886,101920.0,101910.0,1.67046655]
[1734159526379,0.08822886,101920.0,101910.0,1.97422155]
[1734159526582,0.08822886,101920.0,101910.0,1.97472155]
[1734159527574,0.08822886,101920.0,101910.0,1.97422155]
[1734159528280,0.08822886,101920.0,101910.0,1.71887465]
[1734159528582,0.08822886,101920.0,101910.0,1.71937465]
[1734159528784,0.13728386,101920.0,101910.0,1.7093425]
[1734159530078,0.13728386,101920.0,101910.0,1.3485425]
[1734159530383,0.13728386,101920.0,101910.0,1.7093425]
[1734159530578,0.13728386,101920.0,101910.0,1.3485425]
[1734159530783,0.13728386,101920.0,101910.0,1.7093425]
[1734159532570,0.13728386,101920.0,101910.0,1.7088425]
[1734159534183,0.13728386,101920.0,101910.0,1.3480425]
[1734159534480,0.13728386,101920.0,101910.0,1.7088425]
[1734159536081,0.13728386,101920.0,101910.0,1.64818622]
[1734159536284,0.25492739,101920.0,101910.0,1.3480425]
[1734159536476,0.61572739,101920.0,101910.0,0.99633913]
[1734159540382,0.25492739,101920.0,101910.0,0.99633913]
[1734159540588,0.61572739,101920.0,101910.0,0.99633913]
[1734159544394,0.61572739,101920.0,101910.0,0.96593913]
[1734159546692,0.25492739,101920.0,101910.0,0.96593913]
[1734159546894,0.61572739,101920.0,101910.0,0.96593913]
[1734159547484,0.61572739,101920.0,101910.0,0.90343913]
[1734159547791,0.64672739,101920.0,101910.0,0.90343913]
[1734159548291,0.64672739,101920.0,101910.0,1.2551425]
[1734159549291,0.55849853,101920.0,101910.0,1.2551425]
[1734159549490,0.64674036,101920.0,101910.0,1.2551425]
[1734159549798,0.28594036,101920.0,101910.0,1.2551425]
[1734159550094,0.64674036,101920.0,101910.0,1.2551425]
[1734159550295,0.70549684,101920.0,101910.0,1.2551425]
[1734159551091,0.70549684,101920.0,101910.0,1.19448622]
[1734159551296,0.70549684,101920.0,101910.0,1.2551425]
[1734159551592,0.70549684,101920.0,101910.0,1.24541409]
[1734159551593,0.68150959,101920.0,101910.0,1.24541409]
[1734159555497,0.62085331,101920.0,101910.0,1.24541409]
[1734159555697,0.62085331,101920.0,101910.0,1.35513037]
[1734159555898,0.26005331,101920.0,101910.0,1.35513037]
[1734159556099,0.62085331,101920.0,101910.0,1.35513037]
[1734159556399,0.62085331,101920.0,101910.0,1.29447409]
[1734159556596,0.62085331,101920.0,101910.0,1.35513037]
[1734159557697,0.62085331,101920.0,101910.0,1.29447409]
[1734159557889,0.62085331,101920.0,101910.0,1.35513037]
[1734159559102,0.73849516,101920.0,101910.0,1.35513037]
[1734159559301,0.62085331,101920.0,101910.0,1.35513037]
[1734159559496,0.7384953,101920.0,101910.0,1.35513037]
[1734159559889,0.62085331,101920.0,101910.0,1.35513037]
[1734159560402,0.62085331,101920.0,101910.0,1.35552438]
[1734159563902,0.7991595,101920.0,101910.0,1.2948681]
[1734159564103,0.68150959,101920.0,101910.0,1.29456495]
[1734159564407,0.68150959,101920.0,101910.0,1.07796523]
[1734159564991,0.85801604,101920.0,101910.0,0.96058979]
[1734159565605,0.85801604,101920.0,101910.0,0.9605935]
[1734159568911,0.49721604,101920.0,101910.0,0.9605935]
[1734159569108,0.85801604,101920.0,101910.0,0.9605935]
[1734159570001,0.49721604,101920.0,101910.0,0.9605935]
[1734159570199,0.85801604,101920.0,101910.0,0.9605935]
[1734159571006,0.49721604,101920.0,101910.0,0.9605935]
[1734159571207,0.85801604,101920.0,101910.0,0.9605935]
[1734159571510,0.49721604,101920.0,101910.0,0.9605935]
[1734159571709,0.85801604,101920.0,101910.0,0.9605935]
[1734159573720,0.49721604,101920.0,101910.0,0.9605935]
[1734159574019,0.85801604,101920.0,101910.0,0.9605935]
[1734159574912,0.79735976,101920.0,101910.0,0.9605935]
[1734159577018,0.43655976,101920.0,101910.0,0.9605935]
[1734159577217,0.79735976,101920.0,101910.0,0.9605935]
[1734159578314,0.43655976,101920.0,101910.0,0.9605935]
[1734159578616,0.79735976,101920.0,101910.0,0.9605935]
[1734159578809,0.43655976,101920.0,101910.0,0.9605935]
[1734159579307,0.43655976,101920.0,101910.0,0.78424238]
[1734159579308,0.79735976,101920.0,101910.0,0.78424238]
[1734159580020,0.79735976,101920.0,101910.0,1.07796523]
[1734159580518,0.79735976,101920.0,101910.0,1.29488679]
[1734159581019,0.79735976,101920.0,101910.0,0.78424238]
[1734159581520,0.79735976,101920.0,101910.0,1.07796523]
[1734159583319,0.43655976,101920.0,101910.0,1.07796523]
[1734159583620,0.79735976,101920.0,101910.0,1.07796523]
[1734159584717,0.79735976,101920.0,101910.0,1.29491244]
[1734159585620,0.73335976,101920.0,101910.0,1.29491244]
[1734159586022,0.55685331,101920.0,101910.0,1.29491244]
[1734159586219,0.55685331,101920.0,101910.0,1.05973006]
[1734159587026,0.55685331,101920.0,101910.0,1.29495247]
[1734159588324,0.55685331,101920.0,101910.0,1.29472241]
[1734159588325,0.19605331,101920.0,101910.0,1.29472241]
[1734159588625,0.55685331,101920.0,101910.0,1.0595]
[1734159589012,0.55685331,101920.0,101910.0,1.29472583]
[1734159589517,0.19605331,101920.0,101910.0,1.29472583]
[1734159589720,0.55685331,101920.0,101910.0,1.29472583]
[1734159589920,0.19605331,101920.0,101910.0,1.29472583]
[1734159590225,0.55685331,101920.0,101910.0,1.29472583]
[1734159590417,0.55685331,101920.0,101910.0,1.29472692]
[1734159592421,0.73335976,101920.0,101910.0,1.29472692]
[1734159593021,0.73335976,101920.0,101910.0,1.29471002]
[1734159594025,0.55685331,101920.0,101910.0,1.12013938]
[1734159594226,0.55685331,101920.0,101910.0,1.35537257]
[1734159594630,0.73335976,101920.0,101910.0,1.35537257]
[1734159595423,0.73335976,101920.0,101910.0,1.29471629]
[1734159597424,0.73335976,101920.0,101910.0,1.29465026]
[1734159597732,0.73335976,101920.0,101910.0,1.35530654]
[1734159598028,0.73335976,101920.0,101910.0,1.41810654]
[1734159599730,0.62551287,101920.0,101910.0,1.3179425]
[1734159599927,0.62551287,101920.0,101910.0,1.3503425]
[1734159602033,0.20598098,101920.0,101910.0,1.6737232]
[1734159604227,0.08826642,101920.0,101910.0,1.6737232]
[1734159604929,0.08826642,101920.0,101910.0,1.96677071]
[1734159605125,0.08826642,101920.0,101910.0,1.67307224]
[1734159605729,0.08826642,101920.0,101910.0,1.31227224]
[1734159605932,0.08826642,101920.0,101910.0,1.67307224]
[1734159606341,0.08826642,101920.0,101910.0,1.72068449]
[1734159614251,0.08826642,101920.0,101910.0,1.66002821]
[1734159614451,0.08826642,101920.0,101910.0,1.72068449]
[1734159614751,0.08826642,101920.0,101910.0,1.71104477]
[1734159615249,0.08826642,101920.0,101910.0,1.65038849]
[1734159615442,0.08826642,101920.0,101910.0,1.71104477]
[1734159617148,0.08826642,101920.0,101910.0,1.67864477]
[1734159617350,0.08826642,101920.0,101910.0,0.9661414]
[1734159617956,0.13732142,101920.0,101910.0,0.9661414]
[1734159618157,0.13732142,101920.0,101910.0,1.31784477]
[1734159621854,0.13732142,101920.0,101910.0,0.9661414]
[1734159622252,0.25503598,101920.0,101910.0,1.31784477]
[1734159622655,0.25503598,101920.0,101910.0,0.9661414]
[1734159623258,0.25503598,101920.0,101910.0,1.31784477]
[1734159628465,0.25503598,101920.0,101910.0,1.02421965]
[1734159629258,0.25503598,101920.0,101910.0,1.28066199]
[1734159631670,0.25503598,101920.0,101910.0,1.25010184]
[1734159633166,0.16676956,101920.0,101910.0,1.25010184]
[1734159635870,0.16676956,101920.0,101910.0,1.2497544]
[1734159638566,0.16676956,101920.0,101910.0,0.99361965]
[1734159639271,0.11771456,101920.0,101910.0,1.35441965]
[1734159639568,0.20599321,101920.0,101910.0,1.61051838]
[1734159640370,0.20599321,101920.0,101910.0,1.67381838]
[1734159641168,0.20599321,101920.0,101910.0,1.73447466]
[1734159642072,0.20599321,101920.0,101910.0,1.67381838]
[1734159642776,0.20599321,101920.0,101910.0,1.73447466]
[1734159643160,0.08827865,101920.0,101910.0,1.38277129]
[1734159644367,0.08827865,101920.0,101910.0,0.80515873]
[1734159644573,0.25504821,101920.0,101910.0,1.21845387]
[1734159645066,0.25504821,101920.0,101910.0,1.21841063]
[1734159654378,0.25504821,101920.0,101910.0,1.21841841]
[1734159659077,0.25504821,101920.0,101910.0,1.21854589]
[1734159659576,0.25504821,101920.0,101910.0,1.15788961]
[1734159659989,0.25504821,101920.0,101910.0,1.21854589]
[1734159660279,0.11771456,101920.0,101910.0,1.03117256]
[1734159660481,0.58794431,101940.0,101930.0,0.04905]
[1734159660686,0.55684431,101940.0,101930.0,0.10970628]
[1734159660873,0.55684431,101940.0,101930.0,0.40365158]
[1734159661075,0.50779831,101940.0,101930.0,0.90365158]
[1734159661273,0.3608,101940.0,101930.0,1.12236636]
[1734159661693,0.48033515,101940.0,101930.0,1.06171008]
[1734159661886,0.51303515,101940.0,101930.0,0.90365158]
[1734159662078,0.59937718,101940.0,101930.0,0.60970628]
[1734159662284,0.45237887,101940.0,101930.0,0.60970628]
[1734159662586,0.59937718,101940.0,101930.0,0.60970628]
[1734159662991,0.59937718,101940.0,101930.0,0.84475928]
[1734159663573,0.45237887,101940.0,101930.0,0.60970628]
[1734159664088,0.59937718,101940.0,101930.0,0.8447379]
[1734159665181,0.45237887,101940.0,101930.0,0.8447379]
[1734159665587,0.59937718,101940.0,101930.0,1.1386832]
[1734159666488,0.59937718,101940.0,101930.0,0.8447379]
[1734159669490,0.59937718,101940.0,101930.0,1.02096728]
[1734159671491,0.59933057,101940.0,101930.0,0.84466081]
[1734159671987,0.09157887,101940.0,101930.0,0.84466081]
[1734159672183,0.59933057,101940.0,101930.0,0.84466081]
[1734159672789,0.45237887,101940.0,101930.0,0.84466081]
[1734159678999,0.17973149,101940.0,101930.0,1.12164606]
[1734159680589,0.17973149,101940.0,101930.0,1.12132019]
[1734159680995,0.17973149,101940.0,101930.0,1.35625392]
[1734159681392,0.17973149,101940.0,101930.0,1.12132019]
[1734159681599,0.17973149,101940.0,101930.0,1.3562557]
[1734159682496,0.17973149,101940.0,101930.0,1.12132019]
[1734159682799,0.14703149,101940.0,101930.0,1.12132019]
[1734159683498,0.14703149,101940.0,101930.0,1.13138548]
[1734159685401,0.14703149,101940.0,101930.0,1.13129249]
[1734159685903,0.09798549,101940.0,101930.0,1.13129249]
[1734159686394,0.09798549,101940.0,101930.0,1.48372429]
[1734159688093,0.09798549,101940.0,101930.0,1.13129249]
[1734159688400,0.09798549,101940.0,101930.0,1.473659]
[1734159688602,0.09798549,101940.0,101930.0,1.1212272]
[1734159688798,0.09798549,101940.0,101930.0,1.473659]
[1734159689198,0.09798549,101940.0,101930.0,1.1212272]
[1734159689503,0.00983287,101940.0,101930.0,1.1212272]
[1734159689702,0.85569303,101950.0,101930.0,1.1212272]
[1734159689904,0.85569303,101950.0,101940.0,0.46049868]
[1734159691206,0.49489303,101950.0,101940.0,0.46049868]
[1734159691404,0.85569303,101950.0,101940.0,0.46049868]
[1734159693014,0.49489303,101950.0,101940.0,0.46049868]
[1734159693704,0.86562052,101950.0,101940.0,0.46049868]
[1734159694011,0.71866882,101950.0,101940.0,0.46049868]
[1734159694213,0.35786882,101950.0,101940.0,0.46049868]
[1734159694408,0.71866882,101950.0,101940.0,0.46049868]
[1734159696610,0.35786882,101950.0,101940.0,0.46049868]
[1734159696808,0.71866882,101950.0,101940.0,0.46049868]
[1734159698109,0.35786882,101950.0,101940.0,0.46049868]
[1734159698311,0.71866882,101950.0,101940.0,0.46049868]
[1734159702216,0.35786882,101950.0,101940.0,0.46049868]
[1734159703009,0.71866882,101950.0,101940.0,0.46049868]
[1734159704308,0.35786882,101950.0,101940.0,0.46049868]
[1734159704513,0.71866882,101950.0,101940.0,0.46049868]
[1734159705711,0.35786882,101950.0,101940.0,0.46049868]
[1734159705909,0.71866882,101950.0,101940.0,0.46049868]
[1734159709005,0.35786882,101950.0,101940.0,0.46049868]
[1734159709313,0.71866882,101950.0,101940.0,0.46049868]
[1734159709815,0.71866882,101950.0,101940.0,0.28416182]
[1734159712313,0.35786882,101950.0,101940.0,0.28416182]
[1734159712509,0.71866882,101950.0,101940.0,0.28416182]
[1734159713109,0.35786882,101950.0,101940.0,0.28416182]
[1734159713313,0.71866882,101950.0,101940.0,0.28416182]
[1734159714811,0.35786882,101950.0,101940.0,0.23511582]
[1734159715118,0.71866882,101950.0,101940.0,0.41156314]
[1734159718044,0.54232677,101950.0,101940.0,0.41156314]
[1734159718242,0.74805916,101950.0,101940.0,0.17644732]
[1734159718423,0.74805916,101950.0,101930.0,0.91156314]
[1734159718632,0.69470049,101940.0,101930.0,0.91156314]
[1734159718828,0.64700944,101940.0,101930.0,0.91156314]
[1734159721018,0.79407516,101940.0,101930.0,1.02126942]
[1734159721226,0.73341888,101940.0,101930.0,1.02126942]
[1734159721422,0.55691172,101940.0,101930.0,1.38917488]
[1734159722817,0.16668561,101940.0,101930.0,1.15405906]
[1734159724720,0.67455133,101940.0,101930.0,1.15405906]
[1734159726818,0.67455133,101940.0,101930.0,1.09340278]
[1734159727020,0.73520761,101940.0,101930.0,1.15405906]
[1734159728431,0.67455133,101940.0,101930.0,1.15405906]
[1734159729215,0.73520761,101940.0,101930.0,1.15405906]
[1734159729434,0.73520761,101940.0,101930.0,1.38927603]
[1734159730425,0.67455133,101940.0,101930.0,1.38927603]
[1734159731529,0.67455133,101940.0,101930.0,1.16881642]
[1734159731730,0.67455133,101940.0,101930.0,1.38834569]
[1734159733531,0.31375133,101940.0,101930.0,1.38834569]
[1734159733831,0.67455133,101940.0,101930.0,1.38834569]
[1734159734129,0.73520761,101940.0,101930.0,1.29748941]
[1734159734727,0.73520761,101940.0,101930.0,1.24843941]
[1734159734926,0.617568,101940.0,101930.0,1.24843941]
[1734159735336,0.79407516,101940.0,101930.0,1.24843941]
[1734159735631,0.79407516,101940.0,101930.0,1.02891014]
[1734159738633,0.617568,101940.0,101930.0,1.02891014]
[1734159739424,0.617568,101940.0,101930.0,0.73521697]
[1734159740334,0.617568,101940.0,101930.0,1.02891014]
[1734159745047,0.55691172,101940.0,101930.0,1.02891014]
[1734159745229,0.617568,101940.0,101930.0,1.02891014]
[1734159745536,0.79407516,101940.0,101930.0,1.02891014]
[1734159745923,0.79407516,101940.0,101930.0,1.2491816]
[1734159746730,0.79407516,101940.0,101930.0,1.24918047]
[1734159747236,0.79407516,101940.0,101930.0,1.02891014]
[1734159749426,0.79407516,101940.0,101930.0,1.24923392]
[1734159750338,0.43327516,101940.0,101930.0,1.24923392]
[1734159750535,0.79407516,101940.0,101930.0,1.24923392]
[1734159751431,0.43327516,101940.0,101930.0,1.24923392]
[1734159751739,0.79407516,101940.0,101930.0,1.24923392]
[1734159752141,0.79407516,101940.0,101930.0,1.02891014]
[1734159752343,0.79407516,101940.0,101930.0,0.9116861]
[1734159752836,0.85473144,101940.0,101930.0,0.9116861]
[1734159753036,0.70766572,101940.0,101930.0,0.4116861]
[1734159754942,0.70766572,101940.0,101930.0,0.17646913]
[1734159755241,0.53115856,101940.0,101930.0,0.17646913]
[1734159755542,0.04905,101930.0,101920.0,0.9116861]
[1734159755730,0.79401416,101930.0,101920.0,0.9116861]
[1734159756642,0.82631416,101930.0,101920.0,0.9116861]
[1734159758239,0.85931416,101930.0,101920.0,0.17646913]
[1734159760053,1.22011416,101930.0,101920.0,0.17646913]
[1734159762548,1.23003074,101930.0,101920.0,0.17646913]
[1734159763241,1.23003074,101930.0,101910.0,0.9768861]
[1734159763549,0.6761049,101920.0,101910.0,0.9768861]
[1734159765444,0.58799335,101920.0,101910.0,0.80041697]
[1734159766353,0.67608824,101920.0,101910.0,0.80041697]
[1734159767342,0.58799335,101920.0,101910.0,0.80041697]
[1734159767752,0.58799335,101920.0,101910.0,0.9766597]
[1734159768448,0.73504239,101920.0,101910.0,0.9766597]
[1734159768848,0.73504239,101920.0,101910.0,0.74144273]
[1734159772052,0.73504239,101920.0,101910.0,0.5652]
[1734159772454,1.09584239,101920.0,101910.0,0.74144273]
[1734159773756,1.09584239,101920.0,101910.0,0.70944273]
[1734159776358,1.15649867,101920.0,101910.0,0.70944273]
[1734159776569,1.15649867,101920.0,101910.0,0.67624273]
[1734159776763,1.0390166,101920.0,101910.0,0.67624273]
[1734159779549,1.0390166,101920.0,101910.0,0.5]
[1734159780563,1.21547544,101920.0,101910.0,0.5]
[1734159780759,1.09416288,101920.0,101910.0,0.5]
[1734159780949,1.21547544,101920.0,101910.0,0.5]
[1734159781154,1.0390166,101920.0,101910.0,0.5]
[1734159781560,1.21547544,101920.0,101910.0,0.67624273]
[1734159785459,1.21547544,101920.0,101910.0,0.17624273]
[1734159785657,1.0684264,101920.0,101910.0,0.17624273]
[1734159786367,0.04906,101910.0,101900.0,0.91203127]
[1734159786562,0.5872066,101910.0,101900.0,0.91203127]
[1734159786864,0.76542025,101910.0,101900.0,0.91203127]
[1734159790365,0.64786288,101910.0,101900.0,0.91203127]
[1734159790971,0.5872066,101910.0,101900.0,0.91203127]
[1734159791271,0.64786288,101910.0,101900.0,0.91203127]
[1734159791662,0.65784519,101910.0,101900.0,0.91203127]
[1734159794472,0.65784519,101910.0,101900.0,0.84550982]
[1734159794765,0.41984231,101910.0,101900.0,0.84550982]
[1734159794969,0.53742046,101910.0,101900.0,0.90790982]
[1734159795361,0.53742046,101910.0,101900.0,0.67269285]
[1734159796182,0.53742046,101910.0,101900.0,0.96638602]
[1734159796471,0.53744599,101910.0,101900.0,1.18810156]
[1734159800070,0.53744599,101910.0,101900.0,1.18822226]
[1734159801181,0.56678891,101910.0,101900.0,1.18822226]
[1734159803677,0.41984231,101910.0,101900.0,1.18822226]
[1734159803868,0.56678891,101910.0,101900.0,1.18822226]
[1734159804374,0.68440222,101910.0,101900.0,1.18822226]
[1734159809177,0.56678891,101910.0,101900.0,1.18822226]
[1734159809378,0.56678891,101910.0,101900.0,1.18771661]
[1734159813878,0.56678891,101910.0,101900.0,1.12706033]
[1734159814088,0.56678891,101910.0,101900.0,1.18774813]
[1734159815179,0.05904231,101910.0,101900.0,1.18774813]
[1734159815384,0.41984231,101910.0,101900.0,1.18774813]
[1734159815585,0.62744519,101910.0,101900.0,1.06469185]
[1734159815783,0.72394519,101910.0,101900.0,1.06469185]
[1734159816092,0.72394519,101910.0,101900.0,1.30006314]
[1734159818385,0.63008891,101910.0,101900.0,1.36071942]
[1734159818686,0.71561232,101910.0,101900.0,1.47871615]
[1734159823089,0.71561232,101910.0,101900.0,1.47809226]
[1734159827700,0.71561232,101910.0,101900.0,1.47795717]
[1734159828891,0.68815743,101910.0,101900.0,0.23603169]
[1734159829098,0.75255743,101910.0,101900.0,0.41263205]
[1734159829999,0.81321371,101910.0,101900.0,0.41263205]
[1734159830200,0.81321371,101910.0,101900.0,0.17717193]
[1734159830389,0.75255743,101910.0,101900.0,0.17717193]
[1734159833192,0.76727743,101910.0,101900.0,0.17717193]
[1734159834087,0.89944624,101910.0,101900.0,0.17717193]
[1734159834892,0.91416624,101910.0,101900.0,0.17717193]
[1734159835300,0.89944624,101910.0,101900.0,0.17717193]
[1734159836097,0.91416624,101910.0,101900.0,0.17717193]
[1734159836296,0.89944624,101910.0,101900.0,0.17717193]
[1734159837401,0.55336624,101910.0,101900.0,0.17717193]
[1734159837599,0.89944624,101910.0,101900.0,0.17717193]
[1734159837801,0.91416624,101910.0,101900.0,0.17717193]
[1734159838002,0.89944624,101910.0,101900.0,0.17717193]
[1734159838193,0.91416624,101910.0,101900.0,0.17717193]
[1734159839293,0.89944624,101910.0,101900.0,0.17717193]
[1734159839489,0.91416624,101910.0,101900.0,0.17717193]
[1734159839693,0.89944624,101910.0,101900.0,0.17717193]
[1734159840103,0.91416624,101910.0,101900.0,0.17717193]
[1734159840289,0.89944624,101910.0,101900.0,0.17717193]
[1734159840496,0.91416624,101910.0,101900.0,0.17717193]
[1734159840696,0.89944624,101910.0,101900.0,0.17717193]
[1734159841100,0.91416624,101910.0,101900.0,0.17717193]
[1734159841301,0.89944624,101910.0,101900.0,0.17717193]
[1734159841606,0.91416624,101910.0,101900.0,0.17717193]
[1734159841803,0.89944624,101910.0,101900.0,0.17717193]
[1734159842002,0.89944624,101910.0,101900.0,0.00057157]
[1734159842203,0.89944624,101910.0,101900.0,0.17717193]
[1734159842204,0.7377074,101910.0,101900.0,0.17717193]
[1734159842407,0.7229874,101910.0,101900.0,0.17717193]
[1734159842610,0.7377074,101910.0,101900.0,0.17717193]
[1734159843108,0.7229874,101910.0,101900.0,0.17717193]
[1734159843805,0.7377074,101910.0,101900.0,0.17717193]
[1734159843996,0.7229874,101910.0,101900.0,0.17717193]
[1734159844394,0.7377074,101910.0,101900.0,0.17717193]
[1734159844594,0.74253435,101910.0,101900.0,0.17717193]
[1734159845598,0.75725435,101910.0,101900.0,0.17717193]
[1734159849006,0.93371319,101910.0,101900.0,0.17717193]
[1734159851105,0.93371319,101910.0,101900.0,0.22623693]
[1734159851106,0.74253435,101910.0,101900.0,0.22623693]
[1734159851410,0.74253435,101910.0,101900.0,0.46169705]
[1734159853915,0.91899319,101910.0,101900.0,0.46169705]
[1734159857117,0.77210438,101910.0,101900.0,0.46169705]
[1734159860312,0.77210438,101910.0,101900.0,0.41263205]
[1734159860510,0.77210438,101910.0,101900.0,0.03968038]
[1734159860511,0.83276066,101910.0,101900.0,0.03968038]
[1734159860814,0.83276066,101910.0,101880.0,1.06658436]
[1734159860815,0.65630182,101910.0,101880.0,1.06658436]
[1734159861018,0.61757114,101890.0,101880.0,0.84276717]
[1734159861224,0.97837114,101890.0,101880.0,0.79369317]
[1734159861520,1.01054414,101890.0,101880.0,0.5]
[1734159863914,1.18699798,101890.0,101880.0,0.54294855]
[1734159866421,1.19666634,101890.0,101880.0,0.54294855]
[1734159866624,1.25786634,101890.0,101880.0,0.04294855]
[1734159870721,1.0814125,101890.0,101880.0,0.04294855]
[1734159873322,1.14206878,101890.0,101880.0,0.04294855]
[1734159873724,1.31852262,101890.0,101880.0,0.04294855]
[1734159874422,0.049074,101880.0,101870.0,0.580376]
[1734159874618,0.6485212,101880.0,101870.0,0.580376]
[1734159875022,0.58786492,101880.0,101870.0,0.580376]
[1734159877024,0.67586395,101880.0,101870.0,0.580376]
[1734159880038,0.67586395,101880.0,101870.0,0.62332455]
[1734159882927,0.31506395,101880.0,101870.0,0.62332455]
[1734159883129,0.67586395,101880.0,101870.0,0.62332455]
[1734159886538,0.58786492,101880.0,101870.0,0.62332455]
[1734159887731,0.73490978,101880.0,101870.0,0.62332455]
[1734159889539,0.61757514,101880.0,101870.0,0.91701772]
[1734159891044,0.25677514,101880.0,101870.0,0.91701772]
[1734159891245,0.61757514,101880.0,101870.0,0.91701772]
[1734159891833,0.79402898,101880.0,101870.0,0.91701772]
[1734159893333,0.79402898,101880.0,101870.0,0.87406917]
[1734159893334,0.61757514,101880.0,101870.0,0.87406917]
[1734159896048,0.25677514,101880.0,101870.0,0.87406917]
[1734159896250,0.61757514,101880.0,101870.0,0.87406917]
[1734159898650,0.25677514,101880.0,101870.0,0.87406917]